Cogmind - Beta 13 X2 @@@ ROGUE MODE // 2024.01.13 @ 13:51:58 Player: Shodan Result: Destroyed by D-53 Grenadier with Mini Grenade Launcher Performance ------------- Evolutions (0) 0 Regions Visited (2) 400 Robots Destroyed (16) 80 Value Destroyed (406) 406 Prototype IDs (0) 0 Alien Tech Used (0) 0 Bonus (0) 0 TOTAL SCORE: 886 Bonus ------- None Cogmind --------- Core Integrity 0/250 Matter 280/300 Energy 24/250 System Corruption 0% Temperature Hot (231) Movement Treading (160) Location -10/Mines Parts ------- > --- POWER (1) -------- Ion Engine > --- PROPULSION (2) --- Light Treads Light Treads > --- UTILITY (2) ------ Improved Heat Sink Small Storage Unit > --- WEAPON (2) ------- Beam Cannon Beam Cannon > --- INVENTORY (8) ---- Aluminum Leg Heat Sink Seismic Detector Targeting Computer Grenade Launcher Peak State ------------ > --- POWER ------------ Ion Engine > --- PROPULSION ------- Aluminum Leg Aluminum Leg > --- UTILITY ---------- Improved Heat Sink Small Storage Unit > --- WEAPON ----------- Beam Cannon Beam Cannon > --- INVENTORY -------- Ion Engine Light Treads Light Treads Compact Wheel Compact Wheel Beam Cannon Grenade Launcher [Rating: 9] Favorites ----------- Power Ion Engine Engine Ion Engine Propulsion Aluminum Leg Treads Light Treads Leg Aluminum Leg Wheel Compact Wheel Utility Small Storage Unit Device Improved Heat Sink Storage Small Storage Unit Weapon Beam Cannon Energy Gun Small Laser Energy Cannon Beam Cannon Ballistic Gun Light Assault Rifle Build | -11 -10 -10 ------- Run | Yrd Mat Min Slots Evolved . | . . . Power . | . . . Propulsion . | . . . Utility . | . . . Weapon . | . . . Parts Attached 15 | . 10 5 Power 3 | . 2 1 Engine 3 | . 2 1 Core . | . . . Reactor . | . . . Propulsion 5 | . 3 2 Treads 2 | . . 2 Leg 1 | . 1 . Wheel 2 | . 2 . Hover . | . . . Flight . | . . . Utility 1 | . 1 . Device 1 | . 1 . Storage . | . . . Processor . | . . . Hackware . | . . . Protection . | . . . Artifact . | . . . Weapon 6 | . 4 2 Energy Gun . | . . . Energy Cannon 5 | . 3 2 Ballistic Gun 1 | . 1 . Ballistic Cannon . | . . . Launcher . | . . . Special Weapon . | . . . Impact Weapon . | . . . Slashing Weapon . | . . . Piercing Weapon . | . . . Special Melee Weapon . | . . . Unidentified Prototypes . | . . . Parts Lost 8 | . 3 5 Power 1 | . . 1 Propulsion 3 | . 1 2 Utility . | . . . Weapon 4 | . 2 2 Highest Loss Streak 3 | . 3 3 To Critical Strikes . | . . . Average Slot Usage (%) 90 | . 84 94 Engine 13 | . 14 13 Treads 7 | . . 13 Leg 9 | . 23 . Wheel 6 | . . 10 Device 10 | . 5 14 Storage 14 | . 14 14 Energy Gun 2 | . 5 . Energy Cannon 22 | . 13 28 Ballistic Gun 3 | . 7 . Naked Turns . | . . . Heaviest Build 17 | 12 17 17 Greatest Support 40 | 20 20 40 Greatest Overweight (x) 5 | . 1 5 Average Overweight (x) . | . . . Largest Inventory Capacity 8 | . 8 8 Average Capacity 8 | . 8 8 Most Carried 8 | . 8 8 Average Carried 6 | . 6 6 Final Capacity 8 | 8 8 8 Final Carried 6 | 6 6 5 Class Distribution -------------------- 100% | Mutant Dominant Class ---------------- Mutant | -10/Materials Mutant | -10/Mines Resources | -11 -10 -10 ----------- Run | Yrd Mat Min Matter Collected 342 | 184 117 41 Remotely . | . . . Salvage Created 550 | . 263 287 Parts 40 | . 25 15 Haulers Intercepted 1 | . 1 . Recyclers Shooed . | . . . Parts Field Recycled . | . . . Retrieved Matter . | . . . Parts Self-Destructed . | . . . Prevented . | . . . Kills | -11 -10 -10 ------- Run | Yrd Mat Min Combat Hostiles Destroyed 17 | . 6 11 Guns 6 | . 6 . Cannons 10 | . . 10 Classes Destroyed 7 | . 4 3 Builder 1 | . 1 . Hauler 1 | . 1 . Swarmer 6 | . 3 3 Grunt 5 | . 3 2 Sentry 2 | . . 2 Demolisher 1 | . . 1 Assembled 3 | . . 3 Best Kill Streak 4 | . 4 4 Combat Bots Only 4 | . 4 4 Max Kills in Single Turn 1 | . 1 1 Gunslinging . | . . . Exploded . | . . . Melee . | . . . Uniques/NPCs Destroyed . | . . . Combat | -11 -10 -10 -------- Run | Yrd Mat Min Hostile Shots Fired 137 | . 70 67 Missed 32 | . 13 19 Damage Taken 1277 | . 600 677 Core 256 | . 132 124 Absorbed by Shields . | . . . Core Remaining (%) 100 | 100 . . Volleys Fired 65 | . 32 33 Largest 2 | . 2 2 Hottest 120 | . 120 120 Shots Fired 118 | . 55 63 Gun 49 | . 49 . Cannon 69 | . 6 63 Launcher . | . . . Special . | . . . Kinetic 33 | . 33 . Thermal 85 | . 22 63 Explosive . | . . . Electromagnetic . | . . . Robot Hit Streak 13 | . 13 12 Robot Miss Streak 5 | . 2 5 Penetration Max . | . . . Secondary Targets 5 | . 5 . Max Gunslinging Chain 1 | . 1 . Shots Hit Robots 78 | . 39 39 Core Hits 32 | . 15 17 Critical Kills . | . . . Critical Parts Destroyed . | . . . Critical Strikes . | . . . Melee Attacks . | . . . Impact . | . . . Slashing . | . . . Piercing . | . . . Sneak Attacks . | . . . Combat Hostiles . | . . . Follow-up Attacks . | . . . Damage Inflicted 1076 | . 395 681 Guns 303 | . 303 . Cannons 770 | . 89 681 Explosions . | . . . Melee . | . . . Ramming 3 | . 3 . Kinetic 178 | . 178 . Thermal 895 | . 214 681 Explosive . | . . . Electromagnetic . | . . . Impact . | . . . Slashing . | . . . Piercing . | . . . Highest Corruption . | . . . Average Corruption . | . . . Corruption Purged . | . . . Corruption Blocked . | . . . Overload Shots . | . . . Overflow Damage 20 | . . 20 Projectiles 20 | . . 20 Explosions . | . . . Melee . | . . . Knockbacks . | . . . Impact . | . . . Kinetic . | . . . Secondary . | . . . Self-Inflicted Damage 1 | . 1 . Shots . | . . . Rammed 1 | . 1 . Targets Rammed 1 | . 1 . Kicked . | . . . Crushed . | . . . Highest Temperature 231 | . 166 231 Average Temperature 76 | . 70 80 Received Heat Transfer 591 | . 252 339 Siege Activations . | . . . Robots Corrupted . | . . . Combat Hostiles . | . . . Parts Fried . | . . . Impact Corruptions . | . . . Robots Melted 1 | . . 1 Combat Hostiles 1 | . . 1 Parts Melted 6 | . 1 5 Heat Transferred 1903 | . 460 1443 Parts Sabotaged . | . . . Parts Stolen . | . . . Parts Stripped . | . . . Power Chain Reactions . | . . . Missiles Intercepted . | . . . Alert | -11 -10 -10 ------- Run | Yrd Mat Min Peak Influence 217 | . 160 217 Initial 62 | . . 62 Average 99 | . 99 100 Maximum Alert Level 1 | . . 1 Low Security (%) 95 | . 100 92 Level 1 4 | . . 7 Level 2 . | . . . Level 3 . | . . . Level 4 . | . . . Level 5 . | . . . High Security . | . . . Max Security . | . . . Squads Dispatched . | . . . Investigation . | . . . Extermination . | . . . Reinforcement . | . . . Assault . | . . . Garrison . | . . . Intercept . | . . . Searches Triggered . | . . . Construction Impeded . | . . . Haulers Reinforced . | . . . Active Scanning Responses . | . . . Cargo Convoy Interrupts . | . . . Stealth | -11 -10 -10 --------- Run | Yrd Mat Min Distress Signals . | . . . Communications Jammed . | . . . Distress Signals . | . . . Times Spotted 20 | . 8 12 Peak Tracking Total 4 | . 4 3 Tactical Retreats . | . . . Traps | -11 -10 -10 ------- Run | Yrd Mat Min Traps Triggered 1 | . 1 . Indirectly . | . . . Trap Hack Attempts . | . . . Triggered . | . . . Disarmed . | . . . Reprogrammed . | . . . Reused . | . . . Traps Extracted . | . . . Installed . | . . . Triggered . | . . . Machines | -11 -10 -10 ---------- Run | Yrd Mat Min Machines Disabled . | . . . Max in Single Turn . | . . . Machines Repaired . | . . . Machines Dismantled . | . . . Machines Sabotaged . | . . . Overloaded Fab Kills . | . . . Hacking | -11 -10 -10 --------- Run | Yrd Mat Min Machines Accessed 2 | . 2 . Terminals 2 | . 2 . Fabricators . | . . . Repair Stations . | . . . Recycling Units . | . . . Scanalyzers . | . . . Garrison Access . | . . . Total Hacks 6 | . 6 . Successful 3 | . 3 . Failed 3 | . 3 . Catastrophic 1 | . 1 . Database Lockouts . | . . . Manual 5 | . 5 . Terminals 6 | . 6 . Fabricators . | . . . Repair Stations . | . . . Recycling Units . | . . . Scanalyzers . | . . . Garrison Access . | . . . Terminal Hacks 3 | . 3 . Branch Access Points 1 | . 1 . Scanalyzer Index 1 | . 1 . Alert Level 1 | . 1 . Fabricator Hacks . | . . . Repair Station Hacks . | . . . Recycling Unit Hacks . | . . . Scanalyzer . | . . . Garrison Access Hacks . | . . . Unauthorized Hacks . | . . . Terminals . | . . . Fabricators . | . . . Repair Stations . | . . . Recycling Units . | . . . Scanalyzers . | . . . Garrison Access . | . . . Data Cores Recovered . | . . . Used . | . . . Hacking Detections 2 | . 2 . Full Trace Events 1 | . 1 . Feedback Events . | . . . Feedback Blocked . | . . . Robot Schematics Acquired . | . . . Robots Built . | . . . Authchips . | . . . Time . | . . . Total Robot Build Rating . | . . . Part Schematics Acquired . | . . . Parts Built . | . . . Authchips . | . . . Time . | . . . Total Part Build Rating . | . . . Parts Repaired . | . . . Time . | . . . Parts Recycled . | . . . Recycled Matter . | . . . Retrieved Matter . | . . . Retrieved Components . | . . . Parts Scanalyzed . | . . . Part Schematics Acquired . | . . . Parts Damaged . | . . . Bothacking | -11 -10 -10 ------------ Run | Yrd Mat Min Used RIF Installer . | . . . Robots Hacked . | . . . Non-combat . | . . . Combat . | . . . Robot Hacks Applied . | . . . Relay Couplers Released . | . . . Fabnet Peak Effective % . | . . . Robots Rewired . | . . . Allies Hacked . | . . . Hacks Repelled . | . . . Allies | -11 -10 -10 -------- Run | Yrd Mat Min Total Allies . | . . . Largest Group . | . . . Highest-Rated Group . | . . . Highest-Rated Ally . | . . . Total Orders . | . . . Ally Attacks . | . . . Total Damage . | . . . Kills . | . . . Allies Corrupted . | . . . Allies Melted . | . . . Intel | -11 -10 -10 ------- Run | Yrd Mat Min Robot Analysis Total . | . . . Derelict Logs Recovered . | . . . Drone Launches . | . . . Drone Recoveries . | . . . Exploration | -11 -10 -10 ------------- Run | Yrd Mat Min Turns Passed 783 | . 316 467 Spaces Moved 451 | 1 160 290 Core 1 | . . 1 Treads 98 | . . 98 Legs 161 | 1 160 . Wheels 191 | . . 191 Hover . | . . . Flight . | . . . Fastest Speed 100 | 120 120 100 Average Speed 128 | 120 134 125 Slowest Speed 300 | 120 190 300 Overloaded Moves . | . . . Propulsion Burnouts . | . . . Robots Hopped . | . . . Cave-ins Triggered . | . . . Exploration Rate (%) 25 | 2 33 41 Regions Visited 2 Branch Regions 1 Pre-discovered Areas . | . . . Known Exits Taken 1 | . 1 . Unknown Exits Taken 1 | 1 . . Scrap Searched 1 | . . 1 Spaces Dug . | . . . Terrain Destroyed . | . . . Melee . | . . . Projectile . | . . . AOE . | . . . Terrain Rammed . | . . . Walls Destroyed . | . . . Machines Disabled . | . . . Actions | -11 -10 -10 --------- Run | Yrd Mat Min Total 541 | . 209 332 Wait 2 | . 2 . Move 450 | . 160 290 Hop . | . . . Pick Up 6 | . 2 4 Fast Attach 6 | . 6 . Attach 7 | . 2 5 Detach . | . . . Swap 2 | . 2 . Drop 3 | . 3 . Fire 65 | . 32 33 Melee . | . . . Ram . | . . . Kick . | . . . Crush . | . . . Escape Stasis . | . . . Rewire . | . . . Trap . | . . . Miscellaneous . | . . . Route ------- -11/Scrapyard -10/Materials (discovered 2 exits: [*Mat] / *Min) -10/Mines (discovered 1 exit: [*Mat]) History --------- Turn | Location | Event 1 | -11/Scrapyard | Discovered new exit (range 0) 1 | -11/Scrapyard | Entered Materials 104 | -10/Materials | Identified exit to Mines 180 | -10/Materials | Lost 3 parts (1n2w) 215 | -10/Materials | Discovered new exit (range 13) 302 | -10/Materials | Build established: Mutant 317 | -10/Materials | Entered Mines 318 | -10/Mines | Core integrity fell below 50% 383 | -10/Mines | Discovered new exit (range 7) 556 | -10/Mines | Core integrity fell below 20% 733 | -10/Mines | Assembled infested the area 784 | -10/Mines | Destroyed by D-53 Grenadier with Mini Grenade Launcher Last Messages --------------- 00572_ Broken Heat Sink melted. 00577_ Acquired 20 matter. 00593_ Acquired Beam Cannon. 00595_ Acquired Targeting Computer. 00601_ Acquired Heat Sink. 00674_ S-10 Pest destroyed. 00684_ R-06 Scavenger collects Lgt. Assault Rifle. 00688_ R-06 Scavenger collects Flight Unit. 00733_ ALERT: Infestation in the mines, dispatching Demolisher response squad. 00755_ Beam Cannon destroyed. 00757_ as-27455 destroyed. 00757_ Ion Engine destroyed. 00758_ Critical hit (Burn: +80). 00760_ as-35319 destroyed. 00767_ Critical hit (Burn: +80). 00773_ Beam Cannon destroyed. 00777_ Destroyed Asb. F-torch. 00777_ as-65061 destroyed. 00780_ D-53 Grenadier destroyed. Map ----- +----------------------------------------------------+ | | | | | | | | | | | | | | | | | | | | | | | | | ####?????????????????????????????????????????????? | | !"##????????????????????????????????????????????? | | ! ""#????????????????????????????????????????????? | | #????????????????????????????????????????????? | | % ##????????????????????????????????????????????? | | ++####???????????????????????????????????????????? | | [== #???????????????????????????????????????????? | | #???????????????????????????????????????????? | | #???????????????????????????????????????????? | | #???????????????????????????##??????????????? | | #?????????????????##?????? ##?????????????? | | % #????????????????## #### #?????????????? | | #####????????????##### #?????????????? | | #????????????????# @ #??????????????? | | #????????????????# % #??????????????? | | #????????????????# # #??????????????? | | #????????????????# #### *% ???????????? | | #????????????????# #??## % #?????????? | | #????????????????# #???? $ #####??????????? | | #??????????####### #???? ## ##??????????????? | | #??????????# #???? ##?? a??????????????? | | #??????????# #???? #????##?????????????? | | #??????????# ########????#d #???????????????????? | | #??????????# #???????????? ???????????????????? | | #??????????# #???????????? #???????????????????? | | #??????????# #????????????t #???????????????????? | | #??????????# #????????????%=#???????????????????? | | #????????### ##???????????? ???????????????????? | | ####????## ##????????????????????????????????? | | #????# #????????????????????????????????? | | ### ###### #????????????????????????????????? | | ??# = ##???????????????????????????????? | | ### =%[ ##??????????????????????????????? | | ####### ##?????????????????????????????? | | [#?????# % % #?????????????????????????????? | | *%#?????## ### #?????????????????????????? | | %*#??????## #?????????????????????????? | | [!#???????## ######?????????????????????????? | +----------------------------------------------------+ Best States ------------- Heat Dissipation 39 Energy Generation 10 Energy Capacity 250 Matter Stores 300 Matter Capacity 300 Sight Range 16 Terrain Scan Density 10 Evasion (%) 55 Recoil Reduction 2 Item Schematics ----------------- None Robot Schematics ------------------ None Fabricated ------------ Nothing Alien Tech Used ----------------- None Achievements -------------- None Challenges ------------ None Game ------ Seed ResetThunderSuite Manual? 0 Play Time 00:14:56 Cumulative 112.4 hours Start 2023.12.27 @ 22:47:55 End 2024.01.13 @ 13:51:58 Sessions 3 Manual Loads 0 Difficulty Rogue Special Mode None Game No. 132 Rogue 132 Adventurer 0 Explorer 0 Win Type - Total 1 Types 1/0/0/0/0/0/0/0/0 Lore% 53 Gallery% 59 Achievement% 50 Wizard Run 0 Options --------- ASCII 0 Keyboard 0 Movement Arrows Keybinds 0 Fullscreen 1 Font 24/Smallcaps Map View 76x50 Zoom Use 5% Tactical HUD 1 Map Filters NONE Filters NONE Steam 1 RUN: 7f64a6e0-21ca-4f87-946a-7b4ed0c4135f